[Event "Titled Tuesday Blitz February 15 Early 2022"]
[White "Yuan, Qingyu"]
[Black "Williams, Simon K"]
[WhiteFideId "8609772"]
[BlackFideId "404454"]
[WhiteElo "2359"]
[BlackElo "2468"]
[Result "0-1"]
[Round "11"]
[TimeControl "180+1"]
[Date "2022.02.15"]
[WhiteClock "0:00:03"]
[BlackClock "0:00:12"]

1. Nf3 {[%clk 0:03:00]}  f5 {[%clk 0:02:59]} 2. d3 {[%clk 0:03:00]}  Nc6 {[%clk 0:02:58]} 3. e4 {[%clk 0:03:00]}  e5 {[%clk 0:02:58]} 4. Nc3 {[%clk 0:02:52]}  Nf6 {[%clk 0:02:58]} 5. g3 {[%clk 0:02:43]}  Bc5 {[%clk 0:02:50]} 6. Bg2 {[%clk 0:02:40]}  d6 {[%clk 0:02:50]} 7. O-O {[%clk 0:02:39]}  O-O {[%clk 0:02:50]} 8. Nh4 {[%clk 0:02:27]}  f4 {[%clk 0:02:46]} 9. gxf4 {[%clk 0:02:00]}  Ng4 {[%clk 0:02:38]} 10. Nf3 {[%clk 0:01:42]}  exf4 {[%clk 0:02:33]} 11. d4 {[%clk 0:01:41]}  Bb6 {[%clk 0:02:33]} 12. Nd5 {[%clk 0:01:34]}  g5 {[%clk 0:02:02]} 13. c3 {[%clk 0:01:25]}  h6 {[%clk 0:01:53]} 14. a4 {[%clk 0:01:25]}  Qe8 {[%clk 0:01:35]} 15. a5 {[%clk 0:00:59]}  Nxa5 {[%clk 0:01:33]} 16. b4 {[%clk 0:01:00]}  Nc6 {[%clk 0:01:30]} 17. b5 {[%clk 0:00:47]}  Ne7 {[%clk 0:01:28]} 18. Nxb6 {[%clk 0:00:44]}  cxb6 {[%clk 0:01:28]} 19. Ba3 {[%clk 0:00:40]}  Qg6 {[%clk 0:01:21]} 20. h3 {[%clk 0:00:37]}  h5 {[%clk 0:01:09]} 21. Qb3+ {[%clk 0:00:32]}  Be6 {[%clk 0:01:05]} 22. d5 {[%clk 0:00:30]}  Bd7 {[%clk 0:01:00]} 23. Qb4 {[%clk 0:00:29]}  Nc8 {[%clk 0:00:58]} 24. Qd4 {[%clk 0:00:21]}  Nh6 {[%clk 0:00:52]} 25. e5 {[%clk 0:00:20]}  g4 {[%clk 0:00:49]} 26. hxg4 {[%clk 0:00:19]}  hxg4 {[%clk 0:00:49]} 27. Nd2 {[%clk 0:00:12]}  f3 {[%clk 0:00:48]} 28. e6 {[%clk 0:00:11]}  Bxb5 {[%clk 0:00:45]} 29. c4 {[%clk 0:00:11]}  Be8 {[%clk 0:00:45]} 30. Bb2 {[%clk 0:00:11]}  Kh7 {[%clk 0:00:41]} 31. Ne4 {[%clk 0:00:07]}  Nf5 {[%clk 0:00:32]} 32. Qc3 {[%clk 0:00:05]}  Nce7 {[%clk 0:00:23]} 33. Bh1 {[%clk 0:00:04]}  Qh5 {[%clk 0:00:09]} 34. Ng3 {[%clk 0:00:04]}  Qg5 {[%clk 0:00:07]} 35. Rae1 {[%clk 0:00:04]}  Bg6 {[%clk 0:00:07]} 36. Re4 {[%clk 0:00:03]}  Rh8 {[%clk 0:00:07]} 37. Rfe1 {[%clk 0:00:03]}  Rag8 {[%clk 0:00:07]} 38. R4e3 {[%clk 0:00:03]}  Nxg3 {[%clk 0:00:07]} 39. fxg3 {[%clk 0:00:03]}  Nf5 {[%clk 0:00:07]} 40. Re4 {[%clk 0:00:02]}  Kh6 {[%clk 0:00:07]} 41. Rf4 {[%clk 0:00:02]}  Rf8 {[%clk 0:00:07]} 42. Bc1 {[%clk 0:00:03]}  Kh5 {[%clk 0:00:07]} 43. Rfe4 {[%clk 0:00:03]}  Qf6 {[%clk 0:00:06]} 44. Kf2 {[%clk 0:00:03]}  Qxc3 {[%clk 0:00:06]} 45. Bf4 {[%clk 0:00:03]}  Qc2+ {[%clk 0:00:06]} 46. Kf1 {[%clk 0:00:02]}  Nd4 {[%clk 0:00:07]} 47. Rxd4 {[%clk 0:00:02]}  Bd3+ {[%clk 0:00:07]} 48. Rxd3 {[%clk 0:00:02]}  Qxd3+ {[%clk 0:00:07]} 49. Kf2 {[%clk 0:00:02]}  Qc2+ {[%clk 0:00:07]} 50. Kf1 {[%clk 0:00:02]}  Qxc4+ {[%clk 0:00:07]} 51. Kf2 {[%clk 0:00:03]}  Qxd5 {[%clk 0:00:08]} 52. Re3 {[%clk 0:00:03]}  Qd2+ {[%clk 0:00:07]} 53. Kf1 {[%clk 0:00:03]}  Qd1+ {[%clk 0:00:08]} 54. Re1 {[%clk 0:00:03]}  Qd3+ {[%clk 0:00:08]} 55. Kf2 {[%clk 0:00:04]}  Rf5 {[%clk 0:00:09]} 56. e7 {[%clk 0:00:04]}  Re8 {[%clk 0:00:10]} 57. Bxf3 {[%clk 0:00:03]}  Qxf3+ {[%clk 0:00:09]} 58. Kg1 {[%clk 0:00:04]}  Kg6 {[%clk 0:00:10]} 59. Re6+ {[%clk 0:00:04]}  Kf7 {[%clk 0:00:10]} 60. Rh6 {[%clk 0:00:04]}  Rxf4 {[%clk 0:00:10]} 61. Rh7+ {[%clk 0:00:05]}  Kg6 {[%clk 0:00:10]} 62. gxf4 {[%clk 0:00:04]}  Qxf4 {[%clk 0:00:10]} 63. Rh4 {[%clk 0:00:01]}  Qg3+ {[%clk 0:00:10]} 64. Kf1 {[%clk 0:00:01]}  Qxh4 {[%clk 0:00:11]} 65. Kg2 {[%clk 0:00:02]}  Qh3+ {[%clk 0:00:11]} 66. Kg1 {[%clk 0:00:02]}  Qg3+ {[%clk 0:00:11]} 67. Kh1 {[%clk 0:00:03]}  Qf3+ {[%clk 0:00:11]} 68. Kg1 {[%clk 0:00:03]}  Rxe7 {[%clk 0:00:12]} 69. Kh2 {[%clk 0:00:03]}  Re2+ {[%clk 0:00:12]} 0-1


[Site "https://www.chess.com"]